{"text_format":"1","workbook":"xlsx","n_sheets":2,"sheets":["Projektierung Aufstellung","Daten für Excel Befüllung"],"not_rendered":{"charts":0,"images":0,"macros":1,"external_links":0,"defined_names":1,"comments":2,"pivot_tables":0},"unopened":[],"bounds":{"document_bytes":16777216,"sheet_cells":100000,"rows_first":2000,"rows_last":500,"rows_between":2000,"halvings":0,"cell_chars":16384,"cell_head_chars":4096},"cells_cut":0,"cells_raw":0,"read":"whole","date_system":"1900"}

{"sheet":"Projektierung Aufstellung","index":0,"n_rows":85,"n_cols":44,"rows_kept":85,"cut":false,"hidden":false,"merged":[[1,5,1,14],[9,1,9,2],[11,16,11,19],[10,16,10,19],[10,20,10,25],[11,20,11,25],[12,20,12,25],[14,1,14,3],[15,1,15,3],[4,15,4,22],[13,16,13,19],[12,16,12,19],[14,20,14,25],[15,20,15,25],[15,16,15,19],[14,16,14,19],[16,1,16,3],[2,5,2,14],[3,5,3,14],[5,5,5,14],[4,5,4,14],[8,5,8,14],[7,5,7,14],[6,5,6,14],[14,5,14,9],[12,5,12,9],[11,5,11,9],[16,5,16,9],[17,5,17,9],[13,5,13,9],[1,1,1,3],[2,2,2,3],[3,2,3,3],[4,2,4,3],[5,2,5,3],[6,2,6,3],[8,1,8,3],[7,2,7,3],[10,1,10,3],[11,1,11,3],[12,1,12,3],[13,1,13,3],[15,5,15,9],[9,5,9,39],[1,23,1,26],[2,23,2,26],[3,23,3,26],[5,23,5,26],[4,23,4,26],[1,15,1,22],[2,15,2,22],[3,15,3,22],[2,27,2,39],[3,27,3,39],[7,27,7,39],[5,27,5,39],[6,27,6,39],[6,15,6,22],[8,15,8,22],[5,15,5,22],[8,27,8,39],[11,28,11,39],[12,28,12,39],[13,28,13,39],[18,10,18,15],[13,10,13,15],[12,10,12,15],[11,10,11,15],[15,10,15,15],[4,27,4,39],[16,28,16,39],[13,20,13,25],[14,10,14,15],[16,10,16,15],[17,10,17,15],[15,28,15,39],[14,28,14,39],[16,16,16,19],[16,20,16,25],[17,20,17,25],[18,20,18,25],[18,16,18,19],[17,16,17,19],[21,28,21,39],[20,28,20,39],[10,10,10,15],[0,5,0,39],[0,0,0,3],[9,0,27,0],[1,0,8,0],[17,1,27,2],[1,27,1,39],[7,23,7,26],[6,23,6,26],[8,23,8,26],[7,15,7,22],[18,5,18,9],[10,5,10,9],[27,3,27,18],[27,29,27,37],[23,28,23,39],[22,28,22,39],[27,19,27,28],[17,28,17,39],[18,28,18,39],[19,28,19,39],[10,27,10,39]]}
[]
[null,"K.Nr.",null,null,null,"Funktion",null,null,null,null,null,null,null,null,null,"Ausführende Firmen",null,null,null,null,null,null,null,"Tel.",null,null,null,"E-Mail Adressen"]
[null,"Firma",null,null,null,"Bauherr:"]
[null,"Betreiber",null,null,null,"Archithekt:"]
[null,"Besitzer",null,null,null,"Bauleiter:"]
[null,"Straße",null,null,null,"EDV-Admin:"]
[null,"Ort",null,null,null,"Elektriker:"]
[null,"PLZ",null,null,null,"Tischler:"]
[null,null,null,null,null,"Schlosser:"]
[null,"Aufgenommen am  __ . __ . ____"]
[null,null,null,null,null,"SCH Ansprechpartner",null,null,null,null,null,null,null,null,null,null,"Tel.",null,null,null,"E-Mail",null,null,null,null,null,null,"Benötigtes Verwaltung und Programmier Euipment:"]
[null,null,null,null,null,"Team Zentral",null,null,null,null,"Oskar Nimmervoll",null,null,null,null,null,"0732/6599-3060",null,null,null,"oskar.nimmervoll@schachermayer.at",null,null,null,null,null,null,"Anzahl","Salto Artikel Bezeichnungen:"]
[null,null,null,null,null,"Team Zentral",null,null,null,null,"Thomas Frühwirth",null,null,null,null,null,"0732/6599-3060",null,null,null,"thomas.fruehwirth@schachermayer.at",null,null,null,null,null,null,null,"Kodiergerät Mifare EC904B0EU (USB+LAN+NFC)"]
[null,"Wunsch Montage Termin:",null,null,null,"Team Zentral",null,null,null,null,"Sandro Hain",null,null,null,null,null,"0732/6599-3060",null,null,null,"sandro.hain@schachermayer.at",null,null,null,null,null,null,null,"Tragbares Programmiergerät PPD800 (NFC+USB Schnitstelle)"]
[null,"Fertigstellung:",null,null,null,"Team Ost",null,null,null,null,"Manfred Herrmann",null,null,null,null,null,"07326599-6422\t  ",null,null,null,"manfred.Herrmann@schachermayer.at",null,null,null,null,null,null,null,"Gästekarte Mifare Ultralight 85,60 x 53,98 x 0,80 mm, Kunststoff weiß "]
[null,null,null,null,null,"Team Süd",null,null,null,null,"Werner Gritsch",null,null,null,null,null,"0732/6599-3060",null,null,null,"werner.gritsch@schachermayer.at",null,null,null,null,null,null,null,"Gästekarte Mifare Ultralight 85,60 x 53,98 x 0,80 mm, Kunststoff BEDRUCKT"]
[null,null,null,null,null,"Team West",null,null,null,null,"Ewald Schadl ",null,null,null,null,null,"0664/78788704  \t               ",null,null,null,"ewald.Schadl@schachermayer.at",null,null,null,null,null,null,null,"Backoffice Schlüsselanhänger Mifare DESFire4KB, Kunststoff gelb mit SCH-Logo"]
[null,"SVERWEIS",null,null,null,"Team West",null,null,null,null,"Alexander Kaindl",null,null,null,null,null,"0664/88639524",null,null,null,"alexander.kaindl@schachermayer.at",null,null,null,null,null,null,null,"Zutrittsmanagementsoftware SPABasic"]
[null,null,null,null,null,"Auendienst Verkäufer",null,null,null,null,null,null,null,null,null,null,null,null,null,null,null,null,null,null,null,null,null,null,"Zusatz Software Module"]
[null,null,null,null,null,null,null,null,null,null,null,null,null,null,null,null,null,null,null,null,null,null,null,null,null,null,null,null,"Montageschlüssel für abnehmbaren Geo-Lesekopf SP 220764"]
[null,null,null,null,null,null,null,null,null,null,null,null,null,null,null,null,null,null,null,null,null,null,null,null,null,null,null,null,"Montageschlüssel für abnehmbaren Neo-Lesekopf SP 225542"]
[null,null,null,null,null,null,null,null,null,null,null,null,null,null,null,null,null,null,null,null,null,null,null,null,null,null,null,null,"Neoxx Montageschlüssel SP226010"]
[null,null,null,null,null,null,null,null,null,null,null,null,null,null,null,null,null,null,null,null,null,null,null,null,null,null,null,null,"Montageschlüssel XS4 Mini, Stahl verzinkt"]
[]
[]
[]
[]
[null,null,null,"Benötigte Salto Komponeten Ausführung",null,null,null,null,null,null,null,null,null,null,null,null,null,null,null,"Angaben bei Schlosstausch",null,null,null,null,null,null,null,null,null,"Angeben für E-Zylinder"]
["Stück","Etage (Stockwerke)","Raumbezeichnung ","Salto Bauform:\n(z.b.Beschlag)","Produkt\nAusführung","Drückerform","PZ Entfenrung","Modellvarianten","Protokollierende \nNotöffnung","Bitte nicht Stören ","Tür Reed Kontakt","Farbe Beschlag","Farbe Leser Abdeckung ","Türstärke in mm","Unterlagsplatten","Unterlagsplatten Abmessungen","Dückernuss","Wetterschutz IP","Modellvariante\nGlastüren","Entfernung","Dornmass","Nuss in mm","Brandschutz","Fluchttür z. B. EN179 oder EN1125 ","Schlosstype","Schloss Richtung","Benötigte Schloss Ausführung","Schloss Stulp Ausführung","Schloss Ausgleichshülse","Zylindermodell","Lesekopf Verlängerung","Oberflächen Farbe","Spernasen ausführung","Innenknauf Form","Panik  Ausführung","Digitalzylinder Zusatzoption","Zylinder-länge\nAußen A ","Zylinder-länge\nInnen B","Energiesparsschalter","Notiz\nwichtige Information,",null,"Artikel Zusammenfassung Beschläge",null,"Artikel Zusammenfassung E-Zylinder"]
[null,null,null,null,"EM75","U",0,0,null,null,null,"IM","B",6,null,null,9,5,null,null,null,null,null,null,null,null,null,null,null,null,null,null,null,null,null,null,null,null,null,null,null,{"$f":"_xlfn.CONCAT(E30,H30,F30,IF(G30=\"\",\"\",TEXT(G30,\"00\")),L30,M30,N30,Q30,R30,)","v":"EM750U00IMB695"},null,{"$f":"_xlfn.CONCAT(AD30,AE30,AK30,AH30,AL30,AF30,AG30,AI30,AJ30,)","v":""}]
[null,null,null,null,"EM150","U",null,"R ",null,null,null,"IM","B",3,null,null,8,null,null,null,null,null,null,null,null,null,null,null,null,null,null,null,null,null,null,null,null,null,null,null,null,{"$f":"_xlfn.CONCAT(E31,H31,F31,IF(G31=\"\",\"\",TEXT(G31,\"00\")),L31,M31,N31,Q31,R31,)","v":"EM150R UIMB38"},null,{"$f":"_xlfn.CONCAT(AD31,AE31,AK31,AH31,AL31,AF31,AG31,AI31,AJ31,)","v":""}]
[null,null,null,null,null,null,null,null,null,null,null,null,null,null,null,null,null,null,null,null,null,null,null,null,null,null,null,null,null,null,null,null,null,null,null,null,null,null,null,null,null,"",null,""]
[null,null,null,null,null,null,null,null,null,null,null,null,null,null,null,null,null,null,null,null,null,null,null,null,null,null,null,null,null,null,null,null,null,null,null,null,null,null,null,null,null,"",null,""]
[null,null,null,null,null,null,null,null,null,null,null,null,null,null,null,null,null,null,null,null,null,null,null,null,null,null,null,null,null,null,null,null,null,null,null,null,null,null,null,null,null,"",null,""]
[null,null,null,null,null,null,null,null,null,null,null,null,null,null,null,null,null,null,null,null,null,null,null,null,null,null,null,null,null,null,null,null,null,null,null,null,null,null,null,null,null,"",null,""]
[null,null,null,null,null,null,null,null,null,null,null,null,null,null,null,null,null,null,null,null,null,null,null,null,null,null,null,null,null,null,null,null,null,null,null,null,null,null,null,null,null,"",null,""]
[null,null,null,null,null,null,null,null,null,null,null,null,null,null,null,null,null,null,null,null,null,null,null,null,null,null,null,null,null,null,null,null,null,null,null,null,null,null,null,null,null,"",null,""]
[null,null,null,null,null,null,null,null,null,null,null,null,null,null,null,null,null,null,null,null,null,null,null,null,null,null,null,null,null,null,null,null,null,null,null,null,null,null,null,null,null,"",null,""]
[null,null,null,null,null,null,null,null,null,null,null,null,null,null,null,null,null,null,null,null,null,null,null,null,null,null,null,null,null,null,null,null,null,null,null,null,null,null,null,null,null,"",null,""]
[null,null,null,null,null,null,null,null,null,null,null,null,null,null,null,null,null,null,null,null,null,null,null,null,null,null,null,null,null,null,null,null,null,null,null,null,null,null,null,null,null,"",null,""]
[null,null,null,null,null,null,null,null,null,null,null,null,null,null,null,null,null,null,null,null,null,null,null,null,null,null,null,null,null,null,null,null,null,null,null,null,null,null,null,null,null,"",null,""]
[null,null,null,null,null,null,null,null,null,null,null,null,null,null,null,null,null,null,null,null,null,null,null,null,null,null,null,null,null,null,null,null,null,null,null,null,null,null,null,null,null,"",null,""]
[null,null,null,null,null,null,null,null,null,null,null,null,null,null,null,null,null,null,null,null,null,null,null,null,null,null,null,null,null,null,null,null,null,null,null,null,null,null,null,null,null,"",null,""]
[null,null,null,null,null,null,null,null,null,null,null,null,null,null,null,null,null,null,null,null,null,null,null,null,null,null,null,null,null,null,null,null,null,null,null,null,null,null,null,null,null,"",null,""]
[null,null,null,null,null,null,null,null,null,null,null,null,null,null,null,null,null,null,null,null,null,null,null,null,null,null,null,null,null,null,null,null,null,null,null,null,null,null,null,null,null,"",null,""]
[null,null,null,null,null,null,null,null,null,null,null,null,null,null,null,null,null,null,null,null,null,null,null,null,null,null,null,null,null,null,null,null,null,null,null,null,null,null,null,null,null,"",null,""]
[null,null,null,null,null,null,null,null,null,null,null,null,null,null,null,null,null,null,null,null,null,null,null,null,null,null,null,null,null,null,null,null,null,null,null,null,null,null,null,null,null,"",null,""]
[null,null,null,null,null,null,null,null,null,null,null,null,null,null,null,null,null,null,null,null,null,null,null,null,null,null,null,null,null,null,null,null,null,null,null,null,null,null,null,null,null,"",null,""]
[null,null,null,null,null,null,null,null,null,null,null,null,null,null,null,null,null,null,null,null,null,null,null,null,null,null,null,null,null,null,null,null,null,null,null,null,null,null,null,null,null,"",null,""]
[null,null,null,null,null,null,null,null,null,null,null,null,null,null,null,null,null,null,null,null,null,null,null,null,null,null,null,null,null,null,null,null,null,null,null,null,null,null,null,null,null,"",null,""]
[null,null,null,null,null,null,null,null,null,null,null,null,null,null,null,null,null,null,null,null,null,null,null,null,null,null,null,null,null,null,null,null,null,null,null,null,null,null,null,null,null,"",null,""]
[null,null,null,null,null,null,null,null,null,null,null,null,null,null,null,null,null,null,null,null,null,null,null,null,null,null,null,null,null,null,null,null,null,null,null,null,null,null,null,null,null,"",null,""]
[null,null,null,null,null,null,null,null,null,null,null,null,null,null,null,null,null,null,null,null,null,null,null,null,null,null,null,null,null,null,null,null,null,null,null,null,null,null,null,null,null,"",null,""]
[null,null,null,null,null,null,null,null,null,null,null,null,null,null,null,null,null,null,null,null,null,null,null,null,null,null,null,null,null,null,null,null,null,null,null,null,null,null,null,null,null,"",null,""]
[null,null,null,null,null,null,null,null,null,null,null,null,null,null,null,null,null,null,null,null,null,null,null,null,null,null,null,null,null,null,null,null,null,null,null,null,null,null,null,null,null,"",null,""]
[null,null,null,null,null,null,null,null,null,null,null,null,null,null,null,null,null,null,null,null,null,null,null,null,null,null,null,null,null,null,null,null,null,null,null,null,null,null,null,null,null,"",null,""]
[null,null,null,null,null,null,null,null,null,null,null,null,null,null,null,null,null,null,null,null,null,null,null,null,null,null,null,null,null,null,null,null,null,null,null,null,null,null,null,null,null,"",null,""]
[null,null,null,null,null,null,null,null,null,null,null,null,null,null,null,null,null,null,null,null,null,null,null,null,null,null,null,null,null,null,null,null,null,null,null,null,null,null,null,null,null,"",null,""]
[null,null,null,null,null,null,null,null,null,null,null,null,null,null,null,null,null,null,null,null,null,null,null,null,null,null,null,null,null,null,null,null,null,null,null,null,null,null,null,null,null,"",null,""]
[null,null,null,null,null,null,null,null,null,null,null,null,null,null,null,null,null,null,null,null,null,null,null,null,null,null,null,null,null,null,null,null,null,null,null,null,null,null,null,null,null,"",null,""]
[null,null,null,null,null,null,null,null,null,null,null,null,null,null,null,null,null,null,null,null,null,null,null,null,null,null,null,null,null,null,null,null,null,null,null,null,null,null,null,null,null,"",null,""]
[null,null,null,null,null,null,null,null,null,null,null,null,null,null,null,null,null,null,null,null,null,null,null,null,null,null,null,null,null,null,null,null,null,null,null,null,null,null,null,null,null,"",null,""]
[null,null,null,null,null,null,null,null,null,null,null,null,null,null,null,null,null,null,null,null,null,null,null,null,null,null,null,null,null,null,null,null,null,null,null,null,null,null,null,null,null,"",null,""]
[null,null,null,null,null,null,null,null,null,null,null,null,null,null,null,null,null,null,null,null,null,null,null,null,null,null,null,null,null,null,null,null,null,null,null,null,null,null,null,null,null,"",null,""]
[null,null,null,null,null,null,null,null,null,null,null,null,null,null,null,null,null,null,null,null,null,null,null,null,null,null,null,null,null,null,null,null,null,null,null,null,null,null,null,null,null,"",null,""]
[null,null,null,null,null,null,null,null,null,null,null,null,null,null,null,null,null,null,null,null,null,null,null,null,null,null,null,null,null,null,null,null,null,null,null,null,null,null,null,null,null,"",null,""]
[null,null,null,null,null,null,null,null,null,null,null,null,null,null,null,null,null,null,null,null,null,null,null,null,null,null,null,null,null,null,null,null,null,null,null,null,null,null,null,null,null,"",null,""]
[null,null,null,null,null,null,null,null,null,null,null,null,null,null,null,null,null,null,null,null,null,null,null,null,null,null,null,null,null,null,null,null,null,null,null,null,null,null,null,null,null,"",null,""]
[null,null,null,null,null,null,null,null,null,null,null,null,null,null,null,null,null,null,null,null,null,null,null,null,null,null,null,null,null,null,null,null,null,null,null,null,null,null,null,null,null,"",null,""]
[null,null,null,null,null,null,null,null,null,null,null,null,null,null,null,null,null,null,null,null,null,null,null,null,null,null,null,null,null,null,null,null,null,null,null,null,null,null,null,null,null,"",null,""]
[null,null,null,null,null,null,null,null,null,null,null,null,null,null,null,null,null,null,null,null,null,null,null,null,null,null,null,null,null,null,null,null,null,null,null,null,null,null,null,null,null,"",null,""]
[null,null,null,null,null,null,null,null,null,null,null,null,null,null,null,null,null,null,null,null,null,null,null,null,null,null,null,null,null,null,null,null,null,null,null,null,null,null,null,null,null,"",null,""]
[null,null,null,null,null,null,null,null,null,null,null,null,null,null,null,null,null,null,null,null,null,null,null,null,null,null,null,null,null,null,null,null,null,null,null,null,null,null,null,null,null,"",null,""]
[null,null,null,null,null,null,null,null,null,null,null,null,null,null,null,null,null,null,null,null,null,null,null,null,null,null,null,null,null,null,null,null,null,null,null,null,null,null,null,null,null,"",null,""]
[null,null,null,null,null,null,null,null,null,null,null,null,null,null,null,null,null,null,null,null,null,null,null,null,null,null,null,null,null,null,null,null,null,null,null,null,null,null,null,null,null,"",null,""]
[null,null,null,null,null,null,null,null,null,null,null,null,null,null,null,null,null,null,null,null,null,null,null,null,null,null,null,null,null,null,null,null,null,null,null,null,null,null,null,null,null,"",null,""]
[null,null,null,null,null,null,null,null,null,null,null,null,null,null,null,null,null,null,null,null,null,null,null,null,null,null,null,null,null,null,null,null,null,null,null,null,null,null,null,null,null,"",null,""]
[null,null,null,null,null,null,null,null,null,null,null,null,null,null,null,null,null,null,null,null,null,null,null,null,null,null,null,null,null,null,null,null,null,null,null,null,null,null,null,null,null,"",null,""]
[null,null,null,null,null,null,null,null,null,null,null,null,null,null,null,null,null,null,null,null,null,null,null,null,null,null,null,null,null,null,null,null,null,null,null,null,null,null,null,null,null,"",null,""]
[null,null,null,null,null,null,null,null,null,null,null,null,null,null,null,null,null,null,null,null,null,null,null,null,null,null,null,null,null,null,null,null,null,null,null,null,null,null,null,null,null,"",null,""]
[null,null,null,null,null,null,null,null,null,null,null,null,null,null,null,null,null,null,null,null,null,null,null,null,null,null,null,null,null,null,null,null,null,null,null,null,null,null,null,null,null,"",null,""]
[null,null,null,null,null,null,null,null,null,null,null,null,null,null,null,null,null,null,null,null,null,null,null,null,null,null,null,null,null,null,null,null,null,null,null,null,null,null,null,null,null,"",null,""]
[null,null,null,null,null,null,null,null,null,null,null,null,null,null,null,null,null,null,null,null,null,null,null,null,null,null,null,null,null,null,null,null,null,null,null,null,null,null,null,null,null,"",null,""]
[null,null,null,null,null,null,null,null,null,null,null,null,null,null,null,null,null,null,null,null,null,null,null,null,null,null,null,null,null,null,null,null,null,null,null,null,null,null,null,null,null,"",null,""]
[null,null,null,null,null,null,null,null,null,null,null,null,null,null,null,null,null,null,null,null,null,null,null,null,null,null,null,null,null,null,null,null,null,null,null,null,null,null,null,null,null,"",null,""]

{"sheet":"Daten für Excel Befüllung","index":1,"n_rows":80,"n_cols":21,"rows_kept":80,"cut":false,"hidden":false,"merged":[[15,3,15,5],[3,12,3,14],[34,4,34,6],[34,8,34,9],[33,11,33,13],[42,8,42,9],[1,11,1,14],[15,11,15,14],[15,7,15,8],[15,16,15,19],[30,11,30,14]]}
[]
["Zylinderlänge A Aussen","Zylinderlängen B Innen"]
[]
[null,null,null,null,"Energiesparschalter Ausführungen ",null,null,null,"Digitalzylinder  Ausführung",null,null,null,"Digitalzylinder Zusatzoption"]
[30,0]
[35,10,null,null,"SCH 102252380",null,null,null,null,null,null,null,"R"]
[40,20,null,null,"Nein",null,null,null," A ",null,null,null,"G"]
[45,30,null,null,"Salto Offline",null,null,null,"-",null,null,null,"V"]
[50,35,null,null,"Salto Online",null,null,null,null,null,null,null,"-"]
[55,40,null,null,"Vorbereitet"]
[60,45]
[65,50]
[70,55]
[75,60]
[80,65]
[85,70,null,"Unterlagsplatten Ausführung",null,null,null,"Tür Reed Kontakt",null,null,null,"Schloss Ausführung",null,null,null,null,"Benötigte Schloss Ausführung"]
[90,75]
[95,80,null,"Ja",null,null,null,"Für Holztüren schmalen Beschlag",null,null,null,"Bleibt",null,null,null,null,"---"]
[100,85,null,"Nein",null,null,null,"Für Holztüren breiten Beschlag",null,null,null,"Tausch \"Wechselfunktion\"",null,null,null,null,"Tausch \"Wechselfunktion\""]
[105,90,null,null,null,null,null,"Für Stahltüren schmalen Beschlag",null,null,null,"FB",null,null,null,null,"FB"]
[110,95,null,null,null,null,null,"Für Stahltüren breiten Beschlag",null,null,null,"SVP",null,null,null,null,"SVP"]
[115,100,null,null,null,"Türstärke",null,null,null,null,null,"MFV o. Panik",null,null,null,null,"MFV o. Panik"]
[120,105,null,null,null,null,null,null,null,null,null,"MFV m. Panik",null,null,null,null,"MFV m. Panik"]
[125,110,null,"Modellvarianten",null,3,null,"Notöffnung",null,null,null,"Tausch FH 9mm",null,null,null,null,"Wendeschloss mit Rosettenlöcher"]
[130,115,null,null,null,4,null,null,null,null,null,"Wendeschloss",null,null,null,null,"Panikschloss ohne SVP"]
[135,120,null,0,null,6,null,"PO"]
[140,125,null,2,null,7,null,"P1"]
[145,130,null,3,null,9,null,"P6"]
[150,135,null,4,null,1]
[null,140,null,6]
[null,145,null,7,null,"H"]
[null,150,null,"R ",null,"D"]
[null,null,null,"RO",null,null,null,null,null,null,null,null,null,null,null,"Zylindermodell",null,null,null,null,"Spernasen Ausführung"]
[null,null,null,"SH",null,null,null,null,null,null,null,"Salto Bauform:\n(z.b.Beschlag)",null,null,"Technologie Ausführung"]
["Beschlag Entfernung","Beschlag PZ Masse",null,"0GD","Bei Schloss Tausch Be-Massung",null,null,null,"Schloss Ausgleichshülsen",null,null,null,null,null,null,"E1",null,null,null,null,"D"]
[null,null,null,"4GD",null,null,null,null,null,null,null,"ONE DIN Beschlag \"SH\" \"RO\"",null,null,"EM75","E2",null,null,null,null,"H"]
["ohne",72,null,null,"235 x 20 mm 65/72",null,null,null,"8mm --> 8,5 mm",null,null,null,null,null,null,"E3",null,null,null,null,"G"]
["72mm",88,null,null,null,null,null,null,null,null,null,null,null,null,null,"E7",null,null,null,null,"Z"]
["88mm",92,null,null,"235 x 20 mm 80/72",null,null,null,"8mm --> 9 mm",null,null,null,null,null,null,"E8"]
["92mm",0,null,null,"235 x 20 mm 80/72",null,null,null,"8mm --> 10 mm",null,null,null,null,null,null,"E9"]
[null,null,null,null,"235 x 24 mm 55/72",null,null,null,"8,5mm --> 9 mm",null,null,null,null,null,null,"CL119M28"]
[null,null,null,"01","235 x 24 mm 65/72",null,null,null,"8,5mm --> 10 mm",null,null,"ONE  Beschlag \"EM75\"",null,null,"EM75","CL119W28"]
[null,null,null,"02","235 x 24 mm 80/72",null,null,null,null,null,null,"ONE Halbbeschlag \"EM750H / D\"",null,null,"EM75","CL119M40"]
[null,null,null,"03","250 x 18 mm 50/88",null,null,null,null,null,null,null,null,null,null,"CL119W40"]
[null,null,null,"04","250 x 18 mm 60/88",null,null,null,null,null,null,"ONE Komplementärbeschlag Schmal \"E07\"",null,null,"E07","P4P60150CPB1"]
["Drückernuss","Farbe Beschlag",null,"09","250 x 18 mm 70/88",null,null,null,null,null,null,"NEO Zylinder",null,null,"NM","P4R60150CPB1"]
[null,null,null,"C1","250 x 20 mm 50/88",null,null,null,null,null,null,"GEO Zylinder ",null,null,"G9","P3P48825CPB1"]
[8,"IM",null,null,null,null,null,null,null,null,null,"Original Breitschildbeschlag mit Keypad  \"E96\"",null,null,"E96","P3P48825CPB1"]
[9,null,null,null,null,null,null,null,null,null,null,"Original Dopp. Beschlag 8mm \"E9CDO\"",null,null,"E9CDO","P3P48860CPB1"]
[null,"DB",null,null,"250x 20 mm 60/88",null,null,null,null,null,null,"Original Dopp. Beschlag 9mm  \"F9CDO\"",null,null,"F9CDO","P3P48890CPB0"]
[null,"IP",null,"Glastür Varianten","250 x 20 mm 70/88",null,null,null,null,null,null,"Original+ DIN Beschlag \"SH\" \"RO\" ",null,null,"EM45","P3P48825CPB0"]
[null,"NE",null,"LH","245 x 24 mm 30/92",null,null,null,null,null,null,null,null,null,null,"P3P48825CPB0"]
[null,"PM",null,"RH",null,null,null,null,null,null,null,null,null,null,null,"P3P48860CPB0"]
[null,"PP",null,"LR",null,null,null,null,null,null,null,null,null,null,null,"P3P48890CPB0"]
[null,"BC",null,"RR",null,null,null,null,null,null,null,null,null,null,null,null,null,"Lesekopf Verlängerung"]
[null,"DB",null,null,null,null,null,null,null,null,null,"Original+ Beschlag  \"EM45\"",null,null,"EM45","E1"]
[null,null,null,null,"245 x 24 mm 35/92",null,null,null,null,null,null,"Original Breitschildbeschlag mit Keypad  \"E96\"",null,null,"EB65","E2",null,1]
[null,null,null,null,"245 x 24 mm 40/92",null,null,null,null,null,null,"Original+ Breitschildbeschlag   EM65",null,null,"EM65","E3",null,2]
["Beschlag Wetterschutz",null,null,null,"245 x 24 mm 45/92",null,null,null,null,null,null,"Original+ Glastürbeschlag  \"EM65#GD\"",null,null,"EM65","E9",null,3]
[null,null,null,null,null,null,null,null,null,null,null,null,null,null,null,"CL119M28"]
["-",null,null,null,null,null,null,null,null,null,null,"Original+ Halbbeschlag  \"EM450H\"",null,null,"EM45","CL119M40"]
[null,null,null,null,"270 x 20 mm 35/92",null,null,null,null,null,null,null,null,null,null,"CL119W28",null,"Farbe Gehäuse"]
[5,null,null,null,"270 x 20 mm 40/92",null,null,null,null,null,null,"Original+ Komplementärbeschlag Schmal E04",null,null,"E04","CL119W40",null,"CSB"]
["E",null,null,null,"270 x 20 mm 45/92",null,null,null,null,null,null,"Original+ Komplementärbeschlag Breit \"E06\"",null,null,"E06",null,null,"CPB"]
[null,null,null,null,"270 x 24 mm 35/92",null,null,null,null,null,null,"MINI Beschlag Standard  \"EM150\"",null,null,"EM150",null,null,"CSW"]
["N",null,null,null,"270 x 24 mm 40/92",null,null,null,null,null,null,"MINI Beschlag Metall Optik \"EM350\"",null,null,"EM350",null,null,"CPW"]
["E5",null,null,null,"270 x 24 mm 45/92",null,null,null,null,null,null,"Wandleser Aufputz Gerade  \"WRDM\"",null,null,"WRDM0S4",null,null,"PPB"]
[null,null,null,null,"300 x 20 mm 50/88",null,null,null,null,null,null,"Wandleser Pin. Gerade  \"weiß\" WRDM0S4WV",null,null,"WRDM0S4WV",null,null,"PMB"]
[null,null,null,null,"300 x 20 mm 60/88",null,null,null,null,null,null,"Wandleser Pin Gerade  \"Schwarz\" WRDM0S4BV",null,null,"WRDM0S4BV",null,null,"PPW"]
[null,null,null,null,"300 x 20 mm 70/88",null,null,null,null,null,null,null,null,null,null,null,null,"PMW"]
[null,null,null,null,null,null,null,null,null,null,null,"Wandleser Profileser  \"WRDM0M\"",null,null,"WRDM0M4",null,null,"BCB"]
[null,null,null,null,"300 x 24 mm 30/92",null,null,null,null,null,null,"Wandleser Modular  \"B, W, S\" WRMM004#",null,null,"WRMM004",null,null,"NEB"]
[null,null,null,null,"300 x 24 mm 35/92",null,null,null,null,null,null,"Wandlesermodul Einbau  \"WRDMOP\"",null,null,"WRDMOP40",null,null,"NEW"]
[null,null,null,null,"300 x 24 mm 40/92",null,null,null,null,null,null,"Wandleser Glasfront  \"WRDM0G\"",null,null,"WRDMOG4"]
[null,null,null,null,"300 x 24 mm 45/92",null,null,null,null,null,null,"blueNet GATEWAY 3 \"Weiß\" GATEWAYW3CEU",null,null,"GATEWAYW3CEU"]
[null,null,null,null,"xxx --> Siehe Bemerkungsfeld",null,null,null,null,null,null,"blueNet GATEWAY 3  \"Schwarz\" GATEWAYB3CEU",null,null,"GATEWAYB3CEU",null,null,"Innenknauf-Form"]
[null,null,null,null,null,null,null,null,null,null,null,"blueNet node  \"Weiß\" RFNODE3W",null,null,"RFNODE3W",null,null,"S"]
[null,null,null,null,null,null,null,null,null,null,null,"blueNet  Node  \"Schwarz\"  RFNODE3B",null,null,"RFNODE3B",null,null,"R"]
[null,null,null,null,null,null,null,null,null,null,null,"blueNet  Repeater  \"Weiß\" REPEATER03WEU",null,null,"REPEATER03WEU",null,null,"N "]
[null,null,null,null,null,null,null,null,null,null,null,"blueNet Repeater  \"Schwarz\" REPEATER03BEU",null,null,"REPEATER03BEU"]